[Event "Czech Youth U10 Boys 2024"]
[Site "Kouty nad Desnou"]
[Date "2024.03.11"]
[Round "3.4"]
[White "Bukovskij, Dmitri"]
[Black "Hroch, Pavel"]
[Result "1-0"]
[ECO "A06"]
[WhiteElo "1665"]
[BlackElo "1495"]
[Annotator "NA RC"]
[PlyCount "65"]
[EventDate "2024.03.10"]
[EventType "swiss"]
[EventCountry "CZE"]
[SourceTitle "playchess.com"]
[Source "ChessBase"]
[SourceQuality "1"]
[TimeControl "40/5400+30:1800+30"]

1. Nf3 {[%emt 0:00:03]} d5 {[%emt 0:01:10]} 2. d4 {[%emt 0:00:33]} e6 {[%emt 0:00:22]} 3. c4 {[%emt 0:00:30]} Nf6 {[%emt 0:00:16]} 4. cxd5 {[%emt 0:00:22]} exd5 {[%emt 0:00:24]} 5. Nc3 {[%emt 0:00:15]} c6 {[%emt 0:00:09]} 6. Bg5 {[%emt 0:00:20]} Be7 {[%emt 0:00:14]} 7. e3 {[%emt 0:00:22]} Nbd7 {[%emt 0:00:52]} 8. Bd3 {[%emt 0:00:50]} O-O {[%emt 0:00:23]} 9. Qc2 Re8 {[%emt 0:00:58]} 10. O-O {[%emt 0:01:58]} Nf8 {[%emt 0:00:13]} 11. Rab1 {[%emt 0:00:09]} Ne4 {[%emt 0:01:35]} 12. Bxe7 {[%emt 0:00:35]} Qxe7 {[%emt 0:00:11]} 13. b4 {[%emt 0:01:07]} a6 {[%emt 0:00:20]} 14. Na4 {[%emt 0:06:23]} Bg4 {[%emt 0:01:51]} 15. Ne5 {[%emt 0:01:05]} Bf5 {[%emt 0:00:54]} 16. f3 {[%emt 0:00:44]} g6 {[%emt 0:04:23]} 17. fxe4 {[%emt 0:01:05]} dxe4 {[%emt 0:01:03]} 18. Bc4 {[%emt 0:02:39]} Ne6 {[%emt 0:04:21]} 19. Nc5 {[%emt 0:03:11]} f6 {[%emt 0:01:25]} 20. Nxe6 {[%emt 0:01:29]} fxe5 {[%emt 0:00:32]} 21. Nc7+ {[%emt 0:00:58]} Kg7 {[%emt 0:02:49]} 22. Nxe8+ {[%emt 0:00:23]} Rxe8 {[%emt 0:01:12]} 23. dxe5 {[%emt 0:00:43]} Qxe5 {[%emt 0:04:43]} 24. Qb2 {[%emt 0:00:38]} Qxb2 {[%emt 0:01:20]} 25. Rxb2 {[%emt 0:00:06]} b5 {[%emt 0:00:23]} 26. Bb3 {[%emt 0:00:11]} Rd8 {[%emt 0:03:23]} 27. Rd1 {[%emt 0:00:43]} Rc8 {[%emt 0:01:01]} 28. Rc2 {[%emt 0:00:56]} Bg4 {[%emt 0:01:10]} 29. Rd6 {[%emt 0:00:34]} Ra8 {[%emt 0:10:51]} 30. Be6 {[%emt 0:01:00]} Bxe6 {[%emt 0:00:23]} 31. Rxe6 {[%emt 0:00:06]} a5 {[%emt 0:00:18]} 32. bxa5 {[%emt 0:00:30]} Rxa5 {[%emt 0:00:26]} 33. Rxe4 {[%emt 0:00:32]} 1-0

[Event "Czech Youth U10 Boys 2024"]
[Site "Kouty nad Desnou"]
[Date "2024.03.11"]
[Round "3.5"]
[White "Zelenka, Tomas"]
[Black "Strihavka, Petr"]
[Result "0-1"]
[ECO "C55"]
[WhiteElo "1566"]
[BlackElo "1447"]
[Annotator "NA RC"]
[PlyCount "48"]
[EventDate "2024.03.10"]
[EventType "swiss"]
[EventCountry "CZE"]
[SourceTitle "playchess.com"]
[Source "ChessBase"]
[SourceQuality "1"]
[TimeControl "40/5400+30:1800+30"]

1. e4 {[%emt 0:00:03]} e5 {[%emt 0:00:06]} 2. Nf3 {[%emt 0:00:11]} Nc6 {[%emt 0:00:06]} 3. Bc4 {[%emt 0:00:12]} Nf6 {[%emt 0:00:09]} 4. d3 {[%emt 0:00:20]} d6 {[%emt 0:00:10]} 5. c3 {[%emt 0:01:24]} Be6 {[%emt 0:01:14]} 6. Bb3 {[%emt 0:00:51]} Be7 {[%emt 0:00:28]} 7. O-O {[%emt 0:03:07]} O-O {[%emt 0:01:09]} 8. h3 {[%emt 0:01:18]} d5 {[%emt 0:04:35]} 9. exd5 {[%emt 0:15:07]} Bxd5 {[%emt 0:00:25]} 10. Re1 {[%emt 0:00:43]} Bd6 {[%emt 0:06:33]} 11. Bg5 {[%emt 0:04:13]} Bxb3 {[%emt 0:00:24]} 12. Qxb3 {[%emt 0:00:13]} Rb8 {[%emt 0:01:20]} 13. Nbd2 {[%emt 0:01:41]} h6 {[%emt 0:00:24]} 14. Bh4 {[%emt 0:00:36]} Re8 {[%emt 0:00:58]} 15. Nc4 {[%emt 0:03:01]} a6 {[%emt 0:05:16]} 16. Re2 {[%emt 0:06:54]} Re6 {[%emt 0:02:07]} 17. Rae1 {[%emt 0:01:32]} Qe7 {[%emt 0:02:24]} 18. Ne3 {[%emt 0:03:05]} Qd7 {[%emt 0:03:57]} 19. Nf5 {[%emt 0:02:36]} Kh7 {[%emt 0:05:43]} 20. d4 {[%emt 0:03:03]} e4 {[%emt 0:01:53]} 21. d5 {[%emt 0:02:14]} Nxd5 {[%emt 0:04:16]} 22. Rxe4 {[%emt 0:01:44]} Rxe4 {[%emt 0:01:51]} 23. Rxe4 {[%emt 0:00:07]} Qxf5 {[%emt 0:02:58]} 24. Rg4 Qb1+ 0-1

[Event "Czech Youth U10 Boys 2024"]
[Site "Kouty nad Desnou"]
[Date "2024.03.11"]
[Round "3.6"]
[White "Kobersky, Matyas"]
[Black "Skoloud, Josef"]
[Result "0-1"]
[ECO "D30"]
[WhiteElo "1405"]
[BlackElo "1564"]
[Annotator "NA RC"]
[PlyCount "50"]
[EventDate "2024.03.10"]
[EventType "swiss"]
[EventCountry "CZE"]
[SourceTitle "playchess.com"]
[Source "ChessBase"]
[SourceQuality "1"]
[TimeControl "40/5400+30:1800+30"]

1. d4 {[%emt 0:00:21]} d5 {[%emt 0:00:09]} 2. c4 {[%emt 0:00:23]} e6 {[%emt 0:00:08]} 3. Nf3 {[%emt 0:01:09]} Nf6 {[%emt 0:00:16]} 4. a3 {[%emt 0:00:39]} c5 {[%emt 0:02:06]} 5. dxc5 {[%emt 0:04:47]} Bxc5 {[%emt 0:00:19]} 6. e3 {[%emt 0:04:21]} O-O {[%emt 0:02:08]} 7. Nc3 {[%emt 0:02:39]} Nc6 {[%emt 0:02:17]} 8. b4 {[%emt 0:05:55]} Bb6 {[%emt 0:01:26]} 9. Bb2 {[%emt 0:04:07]} Bc7 {[%emt 0:08:04]} 10. Be2 {[%emt 0:03:44]} b6 {[%emt 0:10:41]} 11. O-O {[%emt 0:04:27]} Bb7 {[%emt 0:02:59]} 12. Qb3 {[%emt 0:04:31]} dxc4 {[%emt 0:02:26]} 13. Qxc4 {[%emt 0:03:48]} Ne5 {[%emt 0:04:01]} 14. Nxe5 {[%emt 0:07:14]} Bxe5 {[%emt 0:00:06]} 15. Rfd1 {[%emt 0:01:09]} Qe7 {[%emt 0:00:43]} 16. Rd2 {[%emt 0:07:58]} Rac8 {[%emt 0:02:58]} 17. Qb3 {[%emt 0:03:02]} Qc7 {[%emt 0:03:41]} 18. Rc1 {[%emt 0:04:22]} Bxh2+ {[%emt 0:03:22]} 19. Kf1 {[%emt 0:00:34]} Qb8 {[%emt 0:04:22]} 20. g3 {[%emt 0:02:22]} Bxg3 {[%emt 0:00:09]} 21. fxg3 {[%emt 0:00:18]} Qxg3 {[%emt 0:00:11]} 22. Bc4 {[%emt 0:07:12]} Qxe3 {[%emt 0:03:35]} 23. Nb1 {[%emt 0:02:21]} Qf4+ {[%emt 0:03:26]} 24. Rf2 {[%emt 0:00:58]} Qg5 {[%emt 0:00:38]} 25. Qh3 {[%emt 0:02:21]} b5 {[%emt 0:01:32]} 0-1

[Event "Czech Youth U10 Boys 2024"]
[Site "Kouty nad Desnou"]
[Date "2024.03.11"]
[Round "3.7"]
[White "Dlouhy, Martin"]
[Black "Bartak, Tobias"]
[Result "0-1"]
[ECO "A05"]
[WhiteElo "1965"]
[BlackElo "1545"]
[Annotator "RC"]
[PlyCount "78"]
[EventDate "2024.03.10"]
[EventType "swiss"]
[EventCountry "CZE"]
[SourceTitle "playchess.com"]
[Source "ChessBase"]
[SourceQuality "1"]
[TimeControl "40/5400+30:1800+30"]

1. Nf3 {[%emt 0:00:01]} Nf6 {[%emt 0:00:09]} 2. c4 {[%emt 0:00:11]} g6 {[%emt 0:00:18]} 3. g3 {[%emt 0:00:07]} Bg7 {[%emt 0:00:15]} 4. Bg2 {[%emt 0:00:09]} O-O {[%emt 0:00:35]} 5. d4 {[%emt 0:00:11]} d5 {[%emt 0:00:54]} 6. c5 {[%emt 0:00:56]} c6 {[%emt 0:01:10]} 7. O-O {[%emt 0:00:09]} b6 {[%emt 0:00:12]} 8. b4 {[%emt 0:01:02]} a5 {[%emt 0:01:52]} 9. Bd2 {[%emt 0:00:22]} Ne4 {[%emt 0:01:29]} 10. bxa5 {[%emt 0:01:17]} Nxd2 {[%emt 0:00:09]} 11. Qxd2 {[%emt 0:00:08]} bxc5 {[%emt 0:00:05]} 12. e3 {[%emt 0:00:45]} cxd4 {[%emt 0:00:38]} 13. exd4 {[%emt 0:00:38]} Qxa5 {[%emt 0:00:10]} 14. Qxa5 {[%emt 0:00:24]} Rxa5 {[%emt 0:00:13]} 15. Nc3 {[%emt 0:02:38]} Bg4 {[%emt 0:03:40]} 16. Rad1 {[%emt 0:04:05]} Ra3 {[%emt 0:02:36]} 17. Ne2 {[%emt 0:13:57]} Bxf3 {[%emt 0:02:06]} 18. Bxf3 {[%emt 0:00:46]} Rxf3 {[%emt 0:00:12]} 19. Nf4 {[%emt 0:01:12]} Ra3 {[%emt 0:02:27]} 20. Rfe1 {[%emt 0:01:14]} e6 {[%emt 0:01:12]} 21. Re2 {[%emt 0:01:24]} Nd7 {[%emt 0:03:24]} 22. Rc2 {[%emt 0:00:32]} Rc8 {[%emt 0:01:05]} 23. Ne2 {[%emt 0:01:48]} c5 {[%emt 0:01:18]} 24. f4 {[%emt 0:00:24]} c4 {[%emt 0:01:22]} 25. Nc3 {[%emt 0:01:20]} Rb8 {[%emt 0:01:24]} 26. Kf2 {[%emt 0:02:03]} Nf6 {[%emt 0:01:38]} 27. h3 {[%emt 0:00:33]} h5 {[%emt 0:00:11]} 28. Nb1 {[%emt 0:01:51]} Rd3 {[%emt 0:00:40]} 29. Nd2 {[%emt 0:01:20]} Ne4+ {[%emt 0:00:30]} 30. Kg2 {[%emt 0:06:27]} Rxg3+ {[%emt 0:02:48]} 31. Kh2 {[%emt 0:00:07]} Rd3 {[%emt 0:00:05]} 32. a4 {[%emt 0:00:20]} Ra8 {[%emt 0:00:19]} 33. Ra2 {[%emt 0:00:09]} Nc3 {[%emt 0:00:04]} 34. Rda1 {[%emt 0:00:27]} Nxa2 {[%emt 0:00:23]} 35. Rxa2 {[%emt 0:00:06]} Bxd4 {[%emt 0:00:09]} 36. a5 {[%emt 0:00:10]} Bc3 {[%emt 0:00:22]} 37. Nb1 {[%emt 0:01:05]} Rxa5 {[%emt 0:00:20]} 38. Nxc3 {[%emt 0:00:24]} Rxa2+ {[%emt 0:00:03]} 39. Nxa2 Rd2+ {[%emt 0:00:04]} 0-1

[Event "Czech Youth U10 Boys 2024"]
[Site "Kouty nad Desnou"]
[Date "2024.03.11"]
[Round "3.9"]
[White "Krivka, Lukas"]
[Black "Rybar, Vojta"]
[Result "0-1"]
[ECO "B27"]
[WhiteElo "1567"]
[BlackElo "1435"]
[Annotator "NA RC"]
[PlyCount "48"]
[EventDate "2024.03.10"]
[EventType "swiss"]
[EventCountry "CZE"]
[SourceTitle "playchess.com"]
[Source "ChessBase"]
[SourceQuality "1"]
[TimeControl "40/5400+30:1800+30"]

1. e4 {[%emt 0:00:05]} c5 {[%emt 0:00:15]} 2. Nf3 {[%emt 0:00:32]} g6 {[%emt 0:00:08]} 3. d4 {[%emt 0:04:18]} cxd4 {[%emt 0:00:17]} 4. Nxd4 {[%emt 0:02:33]} Nc6 {[%emt 0:00:40]} 5. Be3 {[%emt 0:00:48]} Bg7 {[%emt 0:01:03]} 6. c3 {[%emt 0:09:33]} Nf6 {[%emt 0:01:31]} 7. f3 {[%emt 0:01:35]} O-O {[%emt 0:00:34]} 8. Be2 {[%emt 0:00:10]} d5 {[%emt 0:00:20]} 9. Nxc6 {[%emt 0:06:10]} bxc6 {[%emt 0:00:34]} 10. exd5 {[%emt 0:00:20]} cxd5 {[%emt 0:00:16]} 11. O-O {[%emt 0:00:43]} e6 {[%emt 0:01:16]} 12. Qd2 {[%emt 0:02:06]} Re8 {[%emt 0:04:17]} 13. Bh6 {[%emt 0:01:08]} Rb8 {[%emt 0:00:30]} 14. Bxg7 {[%emt 0:00:09]} Kxg7 {[%emt 0:00:09]} 15. Bd3 {[%emt 0:08:04]} Qb6+ {[%emt 0:00:51]} 16. Rf2 {[%emt 0:00:15]} e5 {[%emt 0:01:05]} 17. Kh1 {[%emt 0:01:02]} e4 {[%emt 0:00:18]} 18. fxe4 {[%emt 0:00:18]} dxe4 {[%emt 0:00:18]} 19. Rxf6 {[%emt 0:09:29]} Qxf6 {[%emt 0:00:46]} 20. Bc4 {[%emt 0:02:08]} Be6 {[%emt 0:00:27]} 21. Ba6 {[%emt 0:01:56]} Red8 {[%emt 0:00:32]} 22. Qe2 {[%emt 0:00:21]} Rxb2 {[%emt 0:00:52]} 23. Qf1 {[%emt 0:01:43]} Qxf1+ {[%emt 0:00:21]} 24. Bxf1 {[%emt 0:00:09]} Rd1 {[%emt 0:00:08]} 0-1

[Event "Czech Youth U10 Boys 2024"]
[Site "Kouty nad Desnou"]
[Date "2024.03.11"]
[Round "4.1"]
[White "Vydra, David"]
[Black "Trejbal, Jindrich"]
[Result "1-0"]
[ECO "C16"]
[WhiteElo "1583"]
[BlackElo "1947"]
[Annotator "RC"]
[PlyCount "85"]
[EventDate "2024.03.10"]
[EventType "swiss"]
[EventCountry "CZE"]
[SourceTitle "playchess.com"]
[Source "ChessBase"]
[SourceQuality "1"]
[TimeControl "40/5400+30:1800+30"]

1. e4 {[%emt 0:00:03]} e6 {[%emt 0:00:08]} 2. d4 {[%emt 0:00:07]} d5 {[%emt 0:00:07]} 3. Nc3 {[%emt 0:00:08]} Bb4 {[%emt 0:00:08]} 4. e5 {[%emt 0:00:08]} Nc6 {[%emt 0:00:48]} 5. Nf3 {[%emt 0:00:55]} f6 {[%emt 0:01:31]} 6. exf6 {[%emt 0:04:11]} Nxf6 {[%emt 0:02:33]} 7. Bg5 {[%emt 0:00:46]} O-O {[%emt 0:02:03]} 8. Bd3 {[%emt 0:00:34]} Qd6 {[%emt 0:03:01]} 9. O-O {[%emt 0:00:39]} Bxc3 {[%emt 0:01:34]} 10. bxc3 {[%emt 0:00:34]} Ng4 11. h3 {[%emt 0:03:06]} Rxf3 {[%emt 0:06:05]} 12. hxg4 {[%emt 0:00:31]} Rf7 {[%emt 0:01:51]} 13. g3 {[%emt 0:03:56]} h6 {[%emt 0:14:40]} 14. Bf4 {[%emt 0:01:51]} Qe7 {[%emt 0:01:28]} 15. Kg2 {[%emt 0:01:35]} g5 {[%emt 0:02:58]} 16. Be3 {[%emt 0:00:25]} Bd7 {[%emt 0:06:46]} 17. Rh1 {[%emt 0:01:15]} Rf6 {[%emt 0:00:28]} 18. Rh3 {[%emt 0:03:38]} Raf8 {[%emt 0:03:45]} 19. Qh1 {[%emt 0:03:28]} Kg7 {[%emt 0:00:42]} 20. Rf1 {[%emt 0:04:37]} e5 {[%emt 0:05:14]} 21. Bf5 {[%emt 0:03:10]} Bxf5 {[%emt 0:10:44]} 22. gxf5 {[%emt 0:00:49]} Rd6 {[%emt 0:00:19]} 23. g4 {[%emt 0:04:15]} exd4 {[%emt 0:02:46]} 24. Bc1 {[%emt 0:02:23]} Re8 {[%emt 0:15:46]} 25. Kg1 {[%emt 0:04:24]} Qe4 {[%emt 0:04:07]} 26. f3 {[%emt 0:00:37]} Qxc2 {[%emt 0:02:34]} 27. Bxg5 {[%emt 0:02:42]} hxg5 {[%emt 0:01:41]} 28. Rh7+ {[%emt 0:00:40]} Kf6 {[%emt 0:01:20]} 29. Qh6+ {[%emt 0:00:47]} Ke5 {[%emt 0:00:12]} 30. f4+ {[%emt 0:00:08]} Ke4 {[%emt 0:00:49]} 31. f6 {[%emt 0:04:58]} Qe2 {[%emt 0:04:43]} 32. Qg6+ {[%emt 0:00:16]} Ke3 {[%emt 0:00:36]} 33. Qxe8+ {[%emt 0:00:10]} Kd3 {[%emt 0:00:11]} 34. Rh3+ {[%emt 0:01:36]} Qe3+ {[%emt 0:00:40]} 35. Rxe3+ {[%emt 0:00:06]} dxe3 {[%emt 0:00:04]} 36. f7 {[%emt 0:00:54]} gxf4 {[%emt 0:01:28]} 37. f8=Q {[%emt 0:00:16]} e2 {[%emt 0:00:27]} 38. Qf5+ {[%emt 0:00:15]} Kxc3 {[%emt 0:00:15]} 39. Qe3+ {[%emt 0:00:12]} Kc4 {[%emt 0:00:33]} 40. Rc1+ {[%emt 0:00:46]} Kb5 {[%emt 0:00:18]} 41. Qb1+ {[%emt 0:30:46]} Nb4 {[%emt 0:30:28]} 42. Qxb4+ {[%emt 0:00:47]} Kxb4 {[%emt 0:00:38]} 43. Qb3+ {[%emt 0:00:06]} 1-0

[Event "Czech Youth U10 Boys 2024"]
[Site "Kouty nad Desnou"]
[Date "2024.03.11"]
[Round "4.2"]
[White "Bucek, Vit"]
[Black "Lutskiy, Mikhail"]
[Result "1-0"]
[ECO "B35"]
[WhiteElo "1603"]
[BlackElo "1676"]
[Annotator "NA"]
[PlyCount "121"]
[EventDate "2024.03.10"]
[EventType "swiss"]
[EventCountry "CZE"]
[SourceTitle "playchess.com"]
[Source "ChessBase"]
[SourceQuality "1"]
[TimeControl "40/5400+30:1800+30"]

1. e4 {[%emt 0:00:01]} c5 {[%emt 0:00:14]} 2. Nf3 {[%emt 0:00:08]} g6 {[%emt 0:00:14]} 3. d4 {[%emt 0:00:04]} cxd4 {[%emt 0:00:16]} 4. Nxd4 {[%emt 0:00:01]} Bg7 {[%emt 0:00:29]} 5. Nc3 {[%emt 0:00:06]} Nc6 {[%emt 0:00:25]} 6. Be3 {[%emt 0:00:09]} Nf6 {[%emt 0:00:18]} 7. Bc4 {[%emt 0:00:07]} O-O {[%emt 0:00:15]} 8. Bb3 Re8 {[%emt 0:00:18]} 9. f3 {[%emt 0:03:32]} d5 {[%emt 0:02:07]} 10. Nxc6 {[%emt 0:11:16]} bxc6 {[%emt 0:01:43]} 11. exd5 {[%emt 0:00:28]} cxd5 {[%emt 0:05:15]} 12. Nxd5 {[%emt 0:01:21]} Nxd5 {[%emt 0:00:46]} 13. Qxd5 {[%emt 0:00:39]} Qxd5 {[%emt 0:00:35]} 14. Bxd5 {[%emt 0:00:18]} Rb8 {[%emt 0:00:26]} 15. Rb1 {[%emt 0:01:48]} Rxb2 {[%emt 0:06:59]} 16. Rxb2 {[%emt 0:00:43]} Bxb2 {[%emt 0:00:12]} 17. Bxa7 {[%emt 0:00:42]} Bc3+ {[%emt 0:00:10]} 18. Kf2 {[%emt 0:00:20]} Bf5 {[%emt 0:00:43]} 19. Bb3 {[%emt 0:00:31]} Ra8 {[%emt 0:00:59]} 20. Bc5 {[%emt 0:01:18]} Bf6 {[%emt 0:07:37]} 21. Re1 {[%emt 0:02:11]} e6 {[%emt 0:03:30]} 22. a4 {[%emt 0:01:50]} Bxc2 {[%emt 0:06:42]} 23. Bxc2 {[%emt 0:00:57]} Rc8 {[%emt 0:00:24]} 24. Bxg6 {[%emt 0:00:16]} hxg6 {[%emt 0:02:34]} 25. Bb6 {[%emt 0:00:31]} Ra8 {[%emt 0:00:50]} 26. Re4 {[%emt 0:00:44]} Ra6 {[%emt 0:00:50]} 27. a5 {[%emt 0:01:30]} Kg7 {[%emt 0:00:21]} 28. Ke3 {[%emt 0:00:36]} Be7 {[%emt 0:01:12]} 29. Ra4 {[%emt 0:00:51]} Rxb6 {[%emt 0:05:37]} 30. axb6 {[%emt 0:00:34]} Bc5+ {[%emt 0:00:07]} 31. Ke4 {[%emt 0:00:13]} Bxb6 {[%emt 0:00:26]} 32. h4 {[%emt 0:00:44]} Bf2 {[%emt 0:00:36]} 33. Kd3 {[%emt 0:00:40]} Bg3 {[%emt 0:00:22]} 34. Re4 {[%emt 0:01:33]} Kh6 {[%emt 0:01:16]} 35. Kc4 Kh5 {[%emt 0:00:42]} 36. Kc5 {[%emt 0:00:48]} Bxh4 {[%emt 0:01:26]} 37. Kd6 {[%emt 0:00:19]} Bg5 {[%emt 0:00:58]} 38. Kd7 {[%emt 0:00:18]} Kh6 {[%emt 0:00:10]} 39. Ke8 {[%emt 0:00:07]} Kg7 {[%emt 0:00:18]} 40. g4 {[%emt 0:00:34]} Bh6 {[%emt 0:04:16]} 41. Rb4 {[%emt 0:31:20]} f5 {[%emt 0:31:25]} 42. Ke7 {[%emt 0:02:09]} fxg4 {[%emt 0:01:08]} 43. fxg4 {[%emt 0:00:26]} e5 {[%emt 0:00:27]} 44. Ke6 {[%emt 0:00:39]} Bf4 {[%emt 0:00:27]} 45. Rb7+ {[%emt 0:00:56]} Kh6 {[%emt 0:04:37]} 46. Kf6 {[%emt 0:02:21]} g5 {[%emt 0:00:55]} 47. Kf5 {[%emt 0:00:30]} e4 {[%emt 0:00:51]} 48. Kxe4 {[%emt 0:01:07]} Kg6 {[%emt 0:00:25]} 49. Rb6+ {[%emt 0:00:21]} Kf7 {[%emt 0:00:51]} 50. Kf5 {[%emt 0:00:21]} Kg7 {[%emt 0:00:39]} 51. Rb7+ {[%emt 0:01:52]} Kf8 {[%emt 0:00:22]} 52. Kf6 {[%emt 0:00:33]} Kg8 {[%emt 0:00:35]} 53. Rf7 {[%emt 0:01:55]} Be3 {[%emt 0:00:57]} 54. Kg6 {[%emt 0:01:14]} Bf4 {[%emt 0:00:16]} 55. Ra7 {[%emt 0:01:14]} Kf8 {[%emt 0:00:28]} 56. Kf6 {[%emt 0:01:58]} Kg8 {[%emt 0:00:25]} 57. Ra8+ {[%emt 0:00:30]} Kh7 {[%emt 0:00:17]} 58. Kf7 {[%emt 0:00:34]} Bd2 {[%emt 0:00:52]} 59. Ra1 {[%emt 0:00:25]} Be1 {[%emt 0:00:38]} 60. Rxe1 {[%emt 0:00:09]} Kh6 {[%emt 0:00:11]} 61. Rh1# {[%emt 0:00:11]} 1-0

[Event "Czech Youth U10 Boys 2024"]
[Site "Kouty nad Desnou"]
[Date "2024.03.11"]
[Round "4.3"]
[White "Vo, Daniel"]
[Black "Bukovskij, Dmitri"]
[Result "1-0"]
[ECO "B45"]
[WhiteElo "1629"]
[BlackElo "1665"]
[Annotator "NA RC"]
[PlyCount "27"]
[EventDate "2024.03.10"]
[EventType "swiss"]
[EventCountry "CZE"]
[SourceTitle "playchess.com"]
[Source "ChessBase"]
[SourceQuality "1"]
[TimeControl "40/5400+30:1800+30"]

1. e4 {[%emt 0:00:01]} c5 {[%emt 0:00:08]} 2. Nf3 {[%emt 0:00:13]} Nc6 {[%emt 0:01:11]} 3. d4 {[%emt 0:00:24]} cxd4 {[%emt 0:00:10]} 4. Nxd4 {[%emt 0:00:18]} e6 {[%emt 0:00:24]} 5. Nb5 {[%emt 0:01:59]} Nf6 6. N1c3 {[%emt 0:00:31]} Bb4 {[%emt 0:04:23]} 7. Nd6+ {[%emt 0:01:03]} Bxd6 {[%emt 0:00:16]} 8. Qxd6 {[%emt 0:00:21]} Qe7 {[%emt 0:00:46]} 9. Qxe7+ {[%emt 0:02:35]} Nxe7 {[%emt 0:00:55]} 10. Bf4 d5 {[%emt 0:05:13]} 11. Nb5 {[%emt 0:01:26]} O-O {[%emt 0:01:58]} 12. Bd6 {[%emt 0:00:40]} Nc6 {[%emt 0:02:34]} 13. Bxf8 {[%emt 0:00:49]} Kxf8 {[%emt 0:00:18]} 14. exd5 {[%emt 0:00:19]} 1-0

[Event "Czech Youth U10 Boys 2024"]
[Site "Kouty nad Desnou"]
[Date "2024.03.11"]
[Round "4.4"]
[White "Skoloud, Josef"]
[Black "Hlavacek, Pavel"]
[Result "1-0"]
[ECO "B13"]
[WhiteElo "1564"]
[BlackElo "1945"]
[Annotator "RC"]
[PlyCount "111"]
[EventDate "2024.03.10"]
[EventType "swiss"]
[EventCountry "CZE"]
[SourceTitle "playchess.com"]
[Source "ChessBase"]
[SourceQuality "1"]
[TimeControl "40/5400+30:1800+30"]

1. e4 {[%emt 0:00:01]} c6 {[%emt 0:00:15]} 2. d4 {[%emt 0:00:08]} d5 {[%emt 0:00:12]} 3. exd5 {[%emt 0:00:06]} cxd5 {[%emt 0:00:17]} 4. c4 {[%emt 0:00:11]} Nf6 {[%emt 0:00:21]} 5. Nf3 {[%emt 0:00:57]} Bg4 {[%emt 0:00:41]} 6. Nc3 {[%emt 0:01:58]} e6 {[%emt 0:00:34]} 7. Be2 {[%emt 0:01:15]} Nc6 {[%emt 0:03:36]} 8. O-O {[%emt 0:02:53]} dxc4 {[%emt 0:02:08]} 9. Qa4 {[%emt 0:08:41]} Bd6 {[%emt 0:03:08]} 10. Qxc4 {[%emt 0:02:53]} O-O {[%emt 0:01:28]} 11. d5 exd5 {[%emt 0:02:04]} 12. Nxd5 {[%emt 0:03:22]} Be6 {[%emt 0:02:05]} 13. Nxf6+ {[%emt 0:00:47]} Qxf6 {[%emt 0:00:19]} 14. Qb5 {[%emt 0:03:07]} Rab8 {[%emt 0:03:08]} 15. Bg5 {[%emt 0:05:20]} Qf5 {[%emt 0:01:43]} 16. Rfd1 {[%emt 0:03:19]} Qxb5 {[%emt 0:03:09]} 17. Bxb5 {[%emt 0:00:10]} Bb4 {[%emt 0:01:59]} 18. a3 {[%emt 0:02:17]} Be7 {[%emt 0:03:03]} 19. Bxc6 {[%emt 0:02:39]} Bxg5 {[%emt 0:00:10]} 20. Nxg5 {[%emt 0:00:21]} bxc6 {[%emt 0:00:10]} 21. Nxe6 {[%emt 0:00:35]} fxe6 {[%emt 0:01:08]} 22. b4 {[%emt 0:01:02]} Rbd8 {[%emt 0:00:36]} 23. Kf1 {[%emt 0:00:37]} Rd5 {[%emt 0:00:27]} 24. Rac1 {[%emt 0:03:57]} Rc8 {[%emt 0:01:09]} 25. Rxd5 {[%emt 0:02:27]} exd5 {[%emt 0:00:18]} 26. Ke2 {[%emt 0:01:25]} Kf7 {[%emt 0:00:14]} 27. Rc5 {[%emt 0:00:28]} Ke6 {[%emt 0:01:19]} 28. Kd3 {[%emt 0:00:45]} Kd6 {[%emt 0:02:27]} 29. Kd4 {[%emt 0:01:02]} Re8 {[%emt 0:00:18]} 30. Ra5 {[%emt 0:02:00]} Re7 {[%emt 0:02:05]} 31. Ra6 {[%emt 0:01:22]} Rb7 {[%emt 0:00:58]} 32. f3 {[%emt 0:01:44]} Rf7 {[%emt 0:02:39]} 33. b5 {[%emt 0:08:41]} Rf4+ {[%emt 0:04:25]} 34. Ke3 {[%emt 0:00:11]} Rf7 {[%emt 0:00:48]} 35. Rxc6+ {[%emt 0:02:03]} Ke5 {[%emt 0:00:23]} 36. h3 {[%emt 0:06:02]} d4+ {[%emt 0:05:16]} 37. Kd3 {[%emt 0:01:10]} Kd5 {[%emt 0:01:46]} 38. Rc4 {[%emt 0:00:50]} Rf4 {[%emt 0:00:29]} 39. Rc7 {[%emt 0:00:18]} a6 {[%emt 0:02:54]} 40. bxa6 {[%emt 0:00:20]} Rf6 {[%emt 0:00:10]} 41. Rd7+ {[%emt 0:32:45]} Kc5 {[%emt 0:30:35]} 42. Rxg7 {[%emt 0:01:32]} Rxa6 {[%emt 0:00:11]} 43. Rg5+ {[%emt 0:00:26]} Kc6 {[%emt 0:00:35]} 44. Kxd4 {[%emt 0:00:46]} Rxa3 {[%emt 0:00:08]} 45. Rg7 {[%emt 0:00:44]} Ra2 {[%emt 0:00:24]} 46. Ke3 {[%emt 0:00:18]} Rb2 {[%emt 0:00:17]} 47. Kf4 {[%emt 0:00:19]} Kd5 {[%emt 0:00:13]} 48. Kg3 {[%emt 0:00:19]} Kd4 {[%emt 0:01:52]} 49. Rxh7 {[%emt 0:00:26]} Ke3 {[%emt 0:00:16]} 50. Re7+ {[%emt 0:00:15]} Kd4 {[%emt 0:00:09]} 51. h4 {[%emt 0:00:14]} Rb5 {[%emt 0:00:13]} 52. Kg4 {[%emt 0:00:31]} Ra5 {[%emt 0:00:13]} 53. f4 {[%emt 0:00:21]} Kd3 54. g3 {[%emt 0:00:19]} Rc5 {[%emt 0:00:31]} 55. f5 {[%emt 0:00:17]} Rc4+ {[%emt 0:00:05]} 56. Kg5 {[%emt 0:00:11]} 1-0